Cogmind - Beta 14 @@@ ROGUE MODE // 2024.08.22 @ 16:13:56 Player: lexi^-^ Result: Self-destructed Performance ------------- Evolutions (1) 500 Regions Visited (2) 400 Robots Destroyed (43) 215 Value Destroyed (817) 817 Prototype IDs (0) 0 Alien Tech Used (0) 0 Bonus (19) 19 TOTAL SCORE: 1951 Bonus ------- High Alert Combat Kills 19 Cogmind --------- Core Integrity 339/400 Matter 400/400 Energy 265/265 System Corruption 2% Temperature Cool (0) Movement Treading (160) Location -9/Materials Parts ------- > --- POWER (1) -------- Improved Ion Engine > --- PROPULSION (2) --- Improved Treads Improved Treads > --- UTILITY (3) ------ Large Storage Unit Medium Matter Pod Light Armor Plating > --- WEAPON (3) ------- Medium Laser Beam Rifle Light Assault Rifle > --- INVENTORY (15) --- Ion Engine Improved Treads Improved Treads Improved Heat Sink Sensor Array Authchip [Armor] Small Laser Beam Rifle Peak State ------------ > --- POWER ------------ Improved Ion Engine > --- PROPULSION ------- Improved Treads Improved Treads > --- UTILITY ---------- Large Storage Unit Medium Matter Pod Light Armor Plating > --- WEAPON ----------- Medium Laser Beam Rifle Light Assault Rifle > --- INVENTORY -------- Ion Engine Improved Treads Improved Treads Improved Heat Sink Sensor Array Authchip [Armor] Small Laser Beam Rifle [Rating: 14] Favorites ----------- Power Ion Engine Engine Ion Engine Propulsion Improved Treads Treads Improved Treads Leg Aluminum Leg Wheel Wheel Utility Large Matter Pod Device Tractor Beam Storage Large Matter Pod Protection Light Armor Plating Weapon Light Assault Rifle Energy Gun Medium Laser Ballistic Gun Light Assault Rifle Launcher Grenade Launcher Build | -11 -10 -9 ------- Run | Yrd Mat Mat Slots Evolved 2 | . . 2 Power . | . . . Propulsion . | . . . Utility 1 | . . 1 Weapon 1 | . . 1 Parts Attached 32 | 8 16 8 Power 3 | 1 1 1 Engine 3 | 1 1 1 Core . | . . . Reactor . | . . . Propulsion 7 | 4 2 1 Treads 3 | . 2 1 Leg 2 | 2 . . Wheel 2 | 2 . . Hover . | . . . Flight . | . . . Utility 8 | 1 4 3 Device 1 | . . 1 Storage 6 | 1 4 1 Processor . | . . . Hackware . | . . . Protection 1 | . . 1 Artifact . | . . . Weapon 14 | 2 9 3 Energy Gun 6 | 1 4 1 Energy Cannon . | . . . Ballistic Gun 3 | 1 1 1 Ballistic Cannon . | . . . Launcher 5 | . 4 1 Special Weapon . | . . . Impact Weapon . | . . . Slashing Weapon . | . . . Piercing Weapon . | . . . Special Melee Weapon . | . . . Unidentified Prototypes . | . . . Parts Lost 4 | . . 4 Power 1 | . . 1 Propulsion . | . . . Utility 2 | . . 2 Weapon 1 | . . 1 Highest Loss Streak 2 | . . 2 To Critical Strikes . | . . . Average Slot Usage (%) 98 | . 99 96 Engine 12 | . 14 9 Treads 20 | . 20 21 Leg 5 | . 7 . Device 3 | . . 10 Storage 25 | . 27 21 Energy Gun 11 | . 10 11 Ballistic Gun 12 | . 13 10 Launcher 5 | . 3 10 Peak Build Rating 14 | 6 10 14 Average Rating 9 | 4 8 12 On Entrance 5 | . 6 10 Naked Turns . | . . . Heaviest Build 38 | 13 33 38 Greatest Support 46 | 26 46 46 Greatest Overweight (x) 1 | 1 . . Average Overweight (x) . | . . . Largest Inventory Capacity 15 | 8 15 15 Average Capacity 11 | 7 10 15 Most Carried 10 | 2 7 10 Average Carried 5 | 1 5 6 Final Capacity 15 | 8 15 15 Final Carried 8 | 2 6 8 Class Distribution -------------------- 73% | Mutant 26% | Gunner Dominant Class ---------------- Mutant | -10/Materials Gunner | -9/Materials Resources | -11 -10 -9 ----------- Run | Yrd Mat Mat Matter Collected 954 | 220 323 411 Remotely 386 | . . 386 Salvage Created 1026 | . 406 620 Parts 83 | . 27 56 Haulers Intercepted 4 | . 1 3 Recyclers Shooed 3 | . 1 2 Parts Field Recycled . | . . . Retrieved Matter . | . . . Parts Self-Destructed . | . . . Prevented . | . . . Kills | -11 -10 -9 ------- Run | Yrd Mat Mat Combat Hostiles Destroyed 19 | . 10 9 Guns 7 | . 3 4 AOE 12 | . 7 5 Classes Destroyed 10 | . 5 5 Worker 4 | . . 4 Builder 6 | . . 6 Tunneler 2 | . 1 1 Hauler 4 | . 1 3 Recycler 3 | . 1 2 Operator 2 | . 1 1 Watcher 3 | . . 3 Swarmer 3 | . . 3 Grunt 13 | . 10 3 Sentry 3 | . . 3 Best Kill Streak 26 | . 3 26 Combat Bots Only 4 | . 3 4 Max Kills in Single Turn 6 | . 2 6 Gunslinging . | . . . Exploded 2 | . 2 1 Melee . | . . . Uniques/NPCs Destroyed . | . . . Combat | -11 -10 -9 -------- Run | Yrd Mat Mat Hostile Shots Fired 75 | . 38 37 Missed 28 | . 15 13 Damage Taken 727 | . 275 452 Core 117 | . 56 61 Absorbed by Shields . | . . . Regen/Repaired (Parts) 68 | . . 68 Core Remaining (%) 88 | 100 77 . Volleys Fired 83 | . 41 42 Largest 3 | . 2 3 Hottest 100 | . 70 100 Shots Fired 181 | . 80 101 Gun 147 | . 68 79 Cannon . | . . . Launcher 34 | . 12 22 Special . | . . . Kinetic 78 | . 41 37 Thermal 69 | . 27 42 Explosive 34 | . 12 22 Electromagnetic . | . . . Robot Hit Streak 8 | . 5 8 Robot Miss Streak 3 | . 3 2 Penetration Max . | . . . Secondary Targets . | . . . Shots Hit Robots 104 | . 43 61 Core Hits 82 | . 31 51 Critical Kills . | . . . Critical Parts Destroyed . | . . . Critical Strikes 5 | . 1 4 Burn 5 | . 1 4 Melee Attacks . | . . . Impact . | . . . Slashing . | . . . Piercing . | . . . Sneak Attacks . | . . . Combat Hostiles . | . . . Follow-up Attacks . | . . . Damage Inflicted 2579 | . 965 1614 Guns 890 | . 374 516 Cannons . | . . . Explosions 1689 | . 591 1098 Melee . | . . . Ramming . | . . . Kinetic 312 | . 157 155 Thermal 578 | . 217 361 Explosive 1689 | . 591 1098 Electromagnetic . | . . . Impact . | . . . Slashing . | . . . Piercing . | . . . Highest Corruption 2 | . . 2 Average Corruption 2 | . . 2 Corruption Purged . | . . . Corruption Blocked . | . . . Effects 3 | . . 3 Matter Fused 1 | . . 1 Parts Rejected 1 | . . 1 Data Loss (major) 1 | . . 1 Overload Shots . | . . . Overflow Damage 45 | . 11 34 Projectiles . | . . . Explosions 45 | . 11 34 Melee . | . . . Knockbacks . | . . . Impact . | . . . Kinetic . | . . . Secondary . | . . . Self-Inflicted Damage 127 | . . 127 Shots 5 | . . 5 Rammed . | . . . Targets Rammed . | . . . Kicked . | . . . Crushed . | . . . Highest Temperature 192 | . 126 192 Average Temperature 47 | . 36 56 Received Heat Transfer 249 | . 153 96 Siege Activations . | . . . Robots Corrupted . | . . . Combat Hostiles . | . . . Parts Fried . | . . . Impact Corruptions . | . . . Robots Melted . | . . . Combat Hostiles . | . . . Parts Melted 3 | . . 3 Heat Transferred 2072 | . 703 1369 Parts Sabotaged . | . . . Parts Stolen . | . . . Parts Stripped . | . . . Power Chain Reactions . | . . . Alert | -11 -10 -9 ------- Run | Yrd Mat Mat Peak Influence 536 | . 145 536 Initial 26 | . . 26 Average 120 | . 70 256 Maximum Alert Level 2 | . . 2 Low Security (%) 85 | 100 100 48 Level 1 6 | . . 22 Level 2 8 | . . 29 Level 3 . | . . . Level 4 . | . . . Level 5 . | . . . High Security . | . . . Max Security . | . . . Squads Dispatched 5 | . 3 2 Investigation 2 | . 1 1 Extermination . | . . . Reinforcement 3 | . 2 1 Assault . | . . . Garrison . | . . . Intercept . | . . . Searches Triggered . | . . . Construction Impeded 1 | . . 1 Haulers Reinforced . | . . . Active Scanning Responses . | . . . Cargo Convoy Interrupts . | . . . Stealth | -11 -10 -9 --------- Run | Yrd Mat Mat Distress Signals 3 | . 1 2 Communications Jammed . | . . . Distress Signals . | . . . Times Spotted 30 | . 15 15 Peak Tracking Total 4 | . 3 4 Tactical Retreats 1 | . . 1 Traps | -11 -10 -9 ------- Run | Yrd Mat Mat Traps Triggered 3 | . 1 2 Indirectly . | . . . Trap Hack Attempts . | . . . Triggered . | . . . Disarmed . | . . . Reprogrammed . | . . . Reused . | . . . Traps Extracted . | . . . Installed . | . . . Triggered . | . . . Machines | -11 -10 -9 ---------- Run | Yrd Mat Mat Machines Disabled 3 | . . 3 Max in Single Turn 2 | . . 2 Machines Repaired . | . . . Machines Dismantled . | . . . Machines Sabotaged . | . . . Overloaded Fab Kills . | . . . Hacking | -11 -10 -9 --------- Run | Yrd Mat Mat Machines Accessed 2 | . 1 1 Terminals 1 | . 1 . Fabricators . | . . . Repair Stations 1 | . . 1 Recycling Units . | . . . Scanalyzers . | . . . Garrison Access . | . . . Total Hacks 4 | . 1 3 Successful 3 | . 1 2 Failed 1 | . . 1 Catastrophic . | . . . Database Lockouts . | . . . Manual . | . . . Terminals 1 | . 1 . Fabricators . | . . . Repair Stations 3 | . . 3 Recycling Units . | . . . Scanalyzers . | . . . Garrison Access . | . . . Terminal Hacks 1 | . 1 . Locate Traps 1 | . 1 . Fabricator Hacks . | . . . Repair Station Hacks 2 | . . 2 Scan Component 1 | . . 1 Repair 1 | . . 1 Recycling Unit Hacks . | . . . Scanalyzer . | . . . Garrison Access Hacks . | . . . Unauthorized Hacks . | . . . Terminals . | . . . Fabricators . | . . . Repair Stations . | . . . Recycling Units . | . . . Scanalyzers . | . . . Garrison Access . | . . . Data Cores Recovered . | . . . Used . | . . . Hacking Detections 2 | . 1 1 Full Trace Events . | . . . Feedback Events . | . . . Feedback Blocked . | . . . Robot Schematics Acquired . | . . . Robots Built . | . . . Authchips . | . . . Time . | . . . Total Robot Build Rating . | . . . Part Schematics Acquired . | . . . Parts Built . | . . . Authchips . | . . . Time . | . . . Total Part Build Rating . | . . . Parts Repaired 1 | . . 1 Time 16 | . . 16 Parts Recycled . | . . . Recycled Matter . | . . . Retrieved Matter . | . . . Retrieved Components . | . . . Parts Scanalyzed . | . . . Part Schematics Acquired . | . . . Parts Damaged . | . . . Bothacking | -11 -10 -9 ------------ Run | Yrd Mat Mat Used RIF Installer . | . . . Robots Hacked . | . . . Non-combat . | . . . Combat . | . . . Robot Hacks Applied . | . . . Relay Couplers Released . | . . . Fabnet Peak Effective % . | . . . Robots Rewired . | . . . Allies Hacked . | . . . Hacks Repelled . | . . . Allies | -11 -10 -9 -------- Run | Yrd Mat Mat Total Allies . | . . . Largest Group . | . . . Highest-Rated Group . | . . . Highest-Rated Ally . | . . . Total Orders . | . . . Ally Attacks . | . . . Total Damage . | . . . Kills . | . . . Allies Corrupted . | . . . Allies Melted . | . . . Intel | -11 -10 -9 ------- Run | Yrd Mat Mat Robot Analysis Total . | . . . Derelict Logs Recovered . | . . . Drone Launches . | . . . Drone Recoveries . | . . . Exploration | -11 -10 -9 ------------- Run | Yrd Mat Mat Turns Passed 1441 | 60 973 408 Spaces Moved 712 | 43 509 160 Core 2 | 2 . . Treads 494 | . 334 160 Legs 202 | 27 175 . Wheels 14 | 14 . . Hover . | . . . Flight . | . . . Fastest Speed 50 | 50 120 160 Average Speed 147 | 111 146 160 Slowest Speed 190 | 190 160 160 Overloaded Moves . | . . . Propulsion Burnouts . | . . . Robots Hopped . | . . . Cave-ins Triggered . | . . . Exploration Rate (%) 30 | 4 65 23 Regions Visited 2 Branch Regions . Pre-discovered Areas . | . . . Known Exits Taken . | . . . Unknown Exits Taken 2 | 1 1 . Scrap Searched . | . . . Spaces Dug . | . . . Terrain Destroyed 164 | . 54 110 Melee . | . . . Projectile . | . . . AOE 164 | . 54 110 Terrain Rammed . | . . . Walls Destroyed . | . . . Machines Disabled . | . . . Actions | -11 -10 -9 --------- Run | Yrd Mat Mat Total 946 | 52 662 232 Wait 99 | . 83 16 Move 710 | 42 508 160 Hop . | . . . Pick Up 13 | . 7 6 Fast Attach 17 | 8 5 4 Attach 5 | . 1 4 Detach 2 | 2 . . Swap 10 | . 10 . Drop 7 | . 7 . Fire 83 | . 41 42 Melee . | . . . Ram . | . . . Kick . | . . . Crush . | . . . Escape Stasis . | . . . Rewire . | . . . Trap . | . . . Miscellaneous . | . . . Route ------- -11/Scrapyard -10/Materials (discovered 3 exits: *Mat x2 / [*Min]) -9/Materials (discovered 1 exit: [*Min]) History --------- Turn | Location | Event 21 | -11/Scrapyard | Discovered new exit (range 14) 61 | -11/Scrapyard | Entered Materials 305 | -10/Materials | Build established: Mutant 423 | -10/Materials | Discovered new exit (range 7) 546 | -10/Materials | Discovered new exit (range 16) 1008 | -10/Materials | Discovered new exit (range 12) 1034 | -10/Materials | Entered another Materials area 1034 | -9/Materials | Evolved 2 slots: Utility x1, Weapon x1 1074 | -9/Materials | Repaired Imp. Treads 1400 | -9/Materials | Discovered new exit (range 12) 1442 | -9/Materials | Self-destructed Last Messages --------------- 01405_ Triggered Alarm Trap. 01405_ An alarm sounds. 01405_ ALERT: Alarm triggered, dispatching investigation squad. 01413_ Y-45 Defender suffers critical hit (Burn). 01413_ Electrolysis Chamber disabled. 01413_ Grenade Launcher destroyed. 01413_ Destroyed Grenade Launcher. 01414_ Tractor Beam destroyed. 01415_ K-01 Serf collects debris. 01424_ Y-45 Defender heat short circuits Heat Sink. 01424_ Lgt. Armor Plating melted. 01424_ Y-45 Defender destroyed. 01430_ U-05 Engineer builds a Wall. 01432_ Acquired 25 matter. 01434_ U-05 Engineer builds a Wall. 01439_ U-05 Engineer lays Concrete. 01441_ U-05 Engineer builds a Door. Map ----- +----------------------------------------------------+ | ?????????????????????????????????????????????????? | | ?????????????????????????????????????????????????? | | ?????????????????????????????????????????????????? | | ?????????????????????????????????????????????????? | | ????????????????????????????????????????????????? | | +#####???????????????????????????????????????????? | | ]#???????????????????????????????????????????? | | "" #???????????????????????????????????????????? | | "" #???????????????????????????????????????????? | | "" ###########?????????????????????????????????? | | [= # #?????????????????????????????????? | | [= # #?????????????????????????????????? | | # # # #?????????????????????????????????? | | %! ## #?????????????????????????????????? | | | ## #?????????????????????????????????? | | # ## ########??????????????????????????? | | !## ## #??????????????????????????? | | ! ### ## #??????????????????????????? | | ! ! # ## ##### #??????????????????????????? | | |%= # #??????????????????????????? | | !%** # """ #########??????????????????? | | !* """ #"""""""#??????????????????? | | = # """ #" |"! "#??????????????????? | | #######" "##+######??????????? | | # % ????????? | | ! @